[Event "World Senior chT-50 2019"]
[Site "Rhodes"]
[Date "2019.04.19"]
[Round "4.9"]
[White "Soffer, Ram"]
[Black "Godena, Michele"]
[Result "1/2-1/2"]
[ECO "A21"]
[WhiteElo "2486"]
[BlackElo "2459"]
[PlyCount "51"]
[EventDate "2019.04.16"]
[EventType "team-tourn"]
[EventCountry "GRE"]
[TimeControl "40/5400+30:1800+30"]

1. c4 {[%emt 0:00:00]} e5 {[%emt 0:00:00]} 2. Nc3 {[%emt 0:00:00]} Bb4 {[%emt 0:00:36]} 3. Nd5 {[%emt 0:00:00]} Bc5 {[%emt 0:02:47]} 4. b4 {[%emt 0:00:02]} Bd4 {[%emt 0:04:29]} 5. Rb1 {[%emt 0:00:24]} c6 {[%emt 0:00:19]} 6. e3 {[%emt 0:00:06]} cxd5 {[%emt 0:06:11]} 7. exd4 {[%emt 0:00:34]} d6 {[%emt 0:01:20]} 8. dxe5 {[%emt 0:00:18]} dxe5 {[%emt 0:00:16]} 9. Nf3 {[%emt 0:00:35]} Bf5 {[%emt 0:13:56]} 10. Rb3 {[%emt 0:00:56]} Nd7 {[%emt 0:01:47]} 11. Nxe5 {[%emt 0:08:54]} Nxe5 {[%emt 0:03:02]} 12. Re3 {[%emt 0:02:08]} Ne7 {[%emt 0:07:33]} 13. Rxe5 {[%emt 0:00:14]} O-O {[%emt 0:00:05]} 14. d4 {[%emt 0:08:29]} Re8 {[%emt 0:20:45]} 15. Be2 {[%emt 0:06:16]} dxc4 {[%emt 0:07:38]} 16. Bxc4 {[%emt 0:08:37]} Nc6 {[%emt 0:07:23]} 17. Rxe8+ {[%emt 0:00:22]} Qxe8+ {[%emt 0:00:04]} 18. Be3 {[%emt 0:00:11]} Nxb4 {[%emt 0:02:26]} 19. O-O {[%emt 0:00:17]} Qd7 {[%emt 0:12:24]} 20. Qb3 {[%emt 0:06:52]} Nc6 {[%emt 0:00:05]} 21. Qb5 {[%emt 0:04:51]} Rd8 {[%emt 0:00:53]} 22. d5 {[%emt 0:07:04]} Ne7 {[%emt 0:01:25]} 23. Bxa7 {[%emt 0:03:24]} Qxb5 {[%emt 0:00:14]} 24. Bxb5 {[%emt 0:00:01]} Nxd5 {[%emt 0:01:01]} 25. Rd1 {[%emt 0:01:04]} Be6 {[%emt 0:00:15]} 26. Bc4 {[%emt 0:04:54]} 1/2-1/2

[Event "World Senior chT-50 2019"]
[Site "Rhodes"]
[Date "2019.04.19"]
[Round "4.10"]
[White "Garcia Palermo, Carlos"]
[Black "Manor, Ilan"]
[Result "1-0"]
[ECO "E14"]
[WhiteElo "2407"]
[BlackElo "2461"]
[PlyCount "121"]
[EventDate "2019.04.16"]
[EventType "team-tourn"]
[EventCountry "GRE"]
[TimeControl "40/5400+30:1800+30"]

1. d4 {[%emt 0:00:00]} Nf6 {[%emt 0:07:38]} 2. c4 {[%emt 0:00:03]} e6 {[%emt 0:00:41]} 3. Nf3 {[%emt 0:00:47]} b6 {[%emt 0:00:55]} 4. e3 {[%emt 0:01:37]} Bb7 {[%emt 0:01:46]} 5. Bd3 {[%emt 0:00:10]} d5 {[%emt 0:00:08]} 6. b3 {[%emt 0:01:23]} Bd6 {[%emt 0:00:36]} 7. Bb2 {[%emt 0:02:23]} O-O {[%emt 0:01:31]} 8. O-O {[%emt 0:00:21]} Nbd7 {[%emt 0:00:14]} 9. Nc3 {[%emt 0:01:38]} Re8 {[%emt 0:02:36]} 10. cxd5 {[%emt 0:04:18]} exd5 {[%emt 0:00:45]} 11. Rc1 {[%emt 0:00:08]} a6 {[%emt 0:01:33]} 12. Ne2 {[%emt 0:00:11]} Ne4 {[%emt 0:02:11]} 13. Ng3 {[%emt 0:00:09]} Re6 {[%emt 0:04:25]} 14. Qc2 {[%emt 0:12:42]} Rc8 {[%emt 0:05:13]} 15. Rfd1 {[%emt 0:02:51]} Nxg3 {[%emt 0:18:55]} 16. hxg3 {[%emt 0:00:57]} g6 {[%emt 0:00:29]} 17. Qe2 {[%emt 0:06:54]} a5 {[%emt 0:10:50]} 18. a4 {[%emt 0:07:38]} Bf8 {[%emt 0:03:37]} 19. Bb5 {[%emt 0:02:13]} Bg7 {[%emt 0:01:05]} 20. Rc2 {[%emt 0:01:08]} c6 {[%emt 0:02:19]} 21. Bd3 {[%emt 0:03:04]} Ba8 {[%emt 0:01:19]} 22. Kf1 {[%emt 0:11:51]} Qe7 {[%emt 0:00:14]} 23. Ra1 {[%emt 0:10:45]} Re8 {[%emt 0:03:39]} 24. Ba3 {[%emt 0:01:54]} Qd8 {[%emt 0:00:15]} 25. Rd1 {[%emt 0:01:08]} h5 {[%emt 0:08:29]} 26. Qd2 {[%emt 0:02:40]} Bh6 {[%emt 0:02:18]} 27. b4 {[%emt 0:09:32]} Bf8 {[%emt 0:00:42]} 28. Ra2 {[%emt 0:05:49]} axb4 {[%emt 0:02:24]} 29. Bxb4 {[%emt 0:00:03]} c5 {[%emt 0:01:08]} 30. dxc5 {[%emt 0:00:07]} bxc5 {[%emt 0:00:20]} 31. Ba5 {[%emt 0:00:20]} Qe7 {[%emt 0:01:49]} 32. Bb5 {[%emt 0:00:26]} Rc8 {[%emt 0:01:22]} 33. Bc3 {[%emt 0:03:35]} Nf6 {[%emt 0:01:37]} 34. Ba1 {[%emt 0:02:53]} Ne4 {[%emt 0:01:34]} 35. Qb2 {[%emt 0:00:06]} d4 {[%emt 0:00:07]} 36. exd4 {[%emt 0:00:31]} Bg7 {[%emt 0:00:41]} 37. Qc1 {[%emt 0:00:05]} Rd6 {[%emt 0:04:30]} 38. Re1 {[%emt 0:01:20]} Qd8 {[%emt 0:03:57]} 39. dxc5 {[%emt 0:01:20]} Rxc5 {[%emt 0:00:05]} 40. Rc2 {[%emt 0:00:00]} Rxc2 {[%emt 0:00:00]} 41. Qxc2 {[%emt 0:05:09]} Bxa1 {[%emt 0:08:53]} 42. Rxa1 {[%emt 0:00:14]} Qb6 {[%emt 0:08:13]} 43. Qe2 {[%emt 0:14:45]} Qc5 {[%emt 0:04:44]} 44. Re1 {[%emt 0:02:13]} g5 {[%emt 0:09:59]} 45. Qe3 {[%emt 0:02:38]} Qxe3 {[%emt 0:03:14]} 46. Rxe3 {[%emt 0:00:05]} g4 {[%emt 0:00:01]} 47. Ng5 {[%emt 0:00:46]} Nxg5 {[%emt 0:01:19]} 48. Re8+ {[%emt 0:00:06]} Kg7 {[%emt 0:00:03]} 49. Rxa8 {[%emt 0:00:05]} Ne4 {[%emt 0:00:21]} 50. Ke2 {[%emt 0:06:23]} Nc3+ {[%emt 0:00:50]} 51. Ke3 {[%emt 0:00:38]} Nd1+ {[%emt 0:00:09]} 52. Ke2 {[%emt 0:00:46]} Nc3+ {[%emt 0:00:06]} 53. Ke3 {[%emt 0:00:01]} Nd1+ {[%emt 0:00:01]} 54. Kf4 {[%emt 0:00:06]} Nxf2 {[%emt 0:01:08]} 55. a5 {[%emt 0:01:03]} Nd1 {[%emt 0:00:32]} 56. Ke5 {[%emt 0:02:57]} Rd2 {[%emt 0:00:39]} 57. a6 {[%emt 0:00:27]} Rxg2 {[%emt 0:02:29]} 58. Rd8 {[%emt 0:02:03]} Rb2 {[%emt 0:01:32]} 59. a7 {[%emt 0:02:06]} Rxb5+ {[%emt 0:00:30]} 60. Rd5 {[%emt 0:00:04]} Rb6 {[%emt 0:00:49]} 61. a8=Q {[%emt 0:00:20]} 1-0

[Event "World Senior chT-50 2019"]
[Site "Rhodes"]
[Date "2019.04.19"]
[Round "4.11"]
[White "Kaspi, Alexander"]
[Black "Bellia, Fabrizio"]
[Result "1/2-1/2"]
[ECO "E49"]
[WhiteElo "2452"]
[BlackElo "2447"]
[PlyCount "140"]
[EventDate "2019.04.16"]
[EventType "team-tourn"]
[EventCountry "GRE"]
[TimeControl "40/5400+30:1800+30"]

1. d4 {[%emt 0:00:00]} Nf6 {[%emt 0:00:00]} 2. c4 {[%emt 0:00:00]} e6 {[%emt 0:00:00]} 3. Nc3 {[%emt 0:00:00]} Bb4 {[%emt 0:00:00]} 4. e3 {[%emt 0:00:21]} O-O {[%emt 0:00:00]} 5. Bd3 {[%emt 0:00:04]} d5 {[%emt 0:00:02]} 6. Nge2 {[%emt 0:00:07]} dxc4 {[%emt 0:00:14]} 7. Bxc4 {[%emt 0:00:10]} c5 {[%emt 0:00:07]} 8. a3 {[%emt 0:00:38]} Bxc3+ {[%emt 0:00:11]} 9. bxc3 {[%emt 0:00:17]} Qc7 {[%emt 0:00:19]} 10. Ba2 {[%emt 0:06:28]} e5 {[%emt 0:07:36]} 11. f3 {[%emt 0:05:41]} b6 {[%emt 0:11:59]} 12. O-O {[%emt 0:01:18]} Ba6 {[%emt 0:00:59]} 13. d5 {[%emt 0:00:45]} c4 {[%emt 0:04:21]} 14. e4 {[%emt 0:00:46]} Nbd7 {[%emt 0:00:07]} 15. Bg5 {[%emt 0:09:38]} h6 {[%emt 0:07:49]} 16. Be3 {[%emt 0:02:39]} Ne8 {[%emt 0:01:06]} 17. Ng3 {[%emt 0:00:57]} Nd6 {[%emt 0:00:32]} 18. f4 {[%emt 0:01:11]} Rae8 {[%emt 0:03:32]} 19. f5 {[%emt 0:01:24]} f6 {[%emt 0:11:28]} 20. Qg4 {[%emt 0:04:11]} Kh8 {[%emt 0:03:31]} 21. Bb1 {[%emt 0:06:52]} Nc5 {[%emt 0:03:11]} 22. Bc2 {[%emt 0:01:33]} Nb5 {[%emt 0:09:56]} 23. Ne2 {[%emt 0:06:11]} Bc8 {[%emt 0:05:31]} 24. Qf3 {[%emt 0:00:00]} Kg8 {[%emt 0:00:20]} 25. g4 {[%emt 0:00:00]} Kf7 {[%emt 0:00:30]} 26. a4 {[%emt 0:00:19]} Nd6 {[%emt 0:00:07]} 27. Ng3 {[%emt 0:00:10]} Bd7 {[%emt 0:01:45]} 28. h4 {[%emt 0:00:46]} Rh8 {[%emt 0:00:26]} 29. Kg2 {[%emt 0:02:50]} Ke7 {[%emt 0:00:35]} 30. a5 {[%emt 0:00:32]} bxa5 {[%emt 0:05:30]} 31. Qf2 {[%emt 0:03:02]} Rc8 {[%emt 0:00:49]} 32. g5 {[%emt 0:02:21]} hxg5 {[%emt 0:00:19]} 33. hxg5 {[%emt 0:00:04]} Nd3 {[%emt 0:03:40]} 34. Qf3 {[%emt 0:13:51]} Rb8 {[%emt 0:01:46]} 35. Ra2 {[%emt 0:04:44]} Rh4 {[%emt 0:01:51]} 36. Bxd3 {[%emt 0:04:37]} cxd3 {[%emt 0:00:08]} 37. Rh1 {[%emt 0:00:38]} Rxh1 {[%emt 0:01:27]} 38. Nxh1 {[%emt 0:00:53]} Qxc3 {[%emt 0:04:50]} 39. Nf2 {[%emt 0:01:06]} Rb2 {[%emt 0:05:08]} 40. Rxb2 {[%emt 0:00:00]} Qxb2 {[%emt 0:00:00]} 41. gxf6+ {[%emt 0:06:33]} gxf6 {[%emt 0:00:38]} 42. Qg4 {[%emt 0:04:31]} Ne8 {[%emt 0:06:37]} 43. Qd1 {[%emt 0:14:56]} Bb5 {[%emt 0:01:55]} 44. Bxa7 {[%emt 0:02:12]} a4 {[%emt 0:08:27]} 45. Bc5+ {[%emt 0:00:34]} Kd8 {[%emt 0:00:28]} 46. Qh5 {[%emt 0:03:48]} d2 {[%emt 0:03:01]} 47. Qf3 {[%emt 0:07:34]} Qc1 {[%emt 0:03:20]} 48. Ba3 {[%emt 0:06:32]} Qf1+ {[%emt 0:01:49]} 49. Kg3 {[%emt 0:00:07]} Qg1+ {[%emt 0:04:05]} 50. Kh4 {[%emt 0:00:26]} Qg5+ {[%emt 0:00:11]} 51. Kh3 {[%emt 0:00:07]} Bf1+ {[%emt 0:00:08]} 52. Kh2 {[%emt 0:00:07]} Qf4+ {[%emt 0:00:37]} 53. Qxf4 {[%emt 0:00:09]} exf4 {[%emt 0:00:03]} 54. Bb4 {[%emt 0:00:09]} a3 {[%emt 0:03:03]} 55. Bxd2 {[%emt 0:00:51]} a2 {[%emt 0:01:14]} 56. Bc3 {[%emt 0:00:05]} Ke7 {[%emt 0:00:13]} 57. Kg1 {[%emt 0:01:33]} Be2 {[%emt 0:00:24]} 58. Nh3 {[%emt 0:01:00]} f3 {[%emt 0:02:38]} 59. e5 {[%emt 0:01:05]} fxe5 {[%emt 0:01:07]} 60. Bxe5 {[%emt 0:00:06]} Nd6 {[%emt 0:00:08]} 61. f6+ {[%emt 0:02:16]} Kf7 {[%emt 0:00:14]} 62. Kf2 {[%emt 0:03:11]} Ne4+ {[%emt 0:00:46]} 63. Ke3 {[%emt 0:03:09]} Nxf6 {[%emt 0:00:07]} 64. Ba1 {[%emt 0:00:59]} Nxd5+ {[%emt 0:00:32]} 65. Kf2 {[%emt 0:00:12]} Kg6 {[%emt 0:05:03]} 66. Ng1 {[%emt 0:00:05]} Nb4 {[%emt 0:00:15]} 67. Nxe2 {[%emt 0:00:31]} fxe2 {[%emt 0:00:20]} 68. Kxe2 {[%emt 0:00:07]} Nc2 {[%emt 0:00:09]} 69. Bb2 {[%emt 0:00:08]} a1=Q 70. Bxa1 {[%emt 0:00:05]} Nxa1 {[%emt 0:00:20]} 1/2-1/2

[Event "World Senior chT-50 2019"]
[Site "Rhodes"]
[Date "2019.04.19"]
[Round "4.12"]
[White "Bruno, Fabio"]
[Black "Gruenfeld, Yehuda"]
[Result "1/2-1/2"]
[ECO "D00"]
[WhiteElo "2433"]
[BlackElo "2428"]
[PlyCount "81"]
[EventDate "2019.04.16"]
[EventType "team-tourn"]
[EventCountry "GRE"]
[TimeControl "40/5400+30:1800+30"]

1. d4 {[%emt 0:00:10]} Nf6 {[%emt 0:00:00]} 2. Bg5 {[%emt 0:02:19]} d5 {[%emt 0:05:27]} 3. e3 {[%emt 0:00:36]} c6 {[%emt 0:05:43]} 4. Nd2 {[%emt 0:04:56]} Nbd7 {[%emt 0:00:46]} 5. Ngf3 {[%emt 0:01:41]} g6 {[%emt 0:00:12]} 6. Be2 {[%emt 0:00:55]} Bg7 {[%emt 0:00:04]} 7. O-O {[%emt 0:00:44]} O-O {[%emt 0:00:05]} 8. h3 {[%emt 0:05:21]} c5 {[%emt 0:26:17]} 9. c3 {[%emt 0:01:01]} b6 {[%emt 0:00:10]} 10. b4 {[%emt 0:06:46]} c4 {[%emt 0:09:58]} 11. a4 {[%emt 0:01:22]} Bb7 {[%emt 0:01:04]} 12. Qc2 {[%emt 0:01:07]} a6 {[%emt 0:01:29]} 13. Rfe1 {[%emt 0:07:47]} b5 {[%emt 0:19:17]} 14. a5 $11 {[%emt 0:08:38]} Re8 {[%emt 0:05:08]} 15. Bf4 {[%emt 0:11:43]} Ne4 {[%emt 0:02:31]} 16. Bh2 {[%emt 0:05:33]} f5 {[%emt 0:06:37]} 17. Nf1 {[%emt 0:01:44]} e6 {[%emt 0:01:48]} 18. Rad1 {[%emt 0:13:01]} Qe7 {[%emt 0:00:09]} 19. Ne5 {[%emt 0:00:12]} Ndf6 {[%emt 0:01:59]} 20. f3 {[%emt 0:00:11]} Nd6 {[%emt 0:00:08]} 21. Nd2 {[%emt 0:00:33]} Rf8 {[%emt 0:00:27]} 22. Bf1 {[%emt 0:00:18]} Rad8 {[%emt 0:00:19]} 23. Re2 {[%emt 0:00:07]} Qe8 {[%emt 0:00:57]} 24. Rde1 {[%emt 0:00:12]} g5 {[%emt 0:01:50]} 25. g4 {[%emt 0:01:25]} fxg4 {[%emt 0:01:51]} 26. hxg4 {[%emt 0:00:10]} Nf7 {[%emt 0:00:47]} 27. Bg2 {[%emt 0:01:48]} Nd7 {[%emt 0:02:45]} 28. f4 {[%emt 0:00:21]} Nf6 {[%emt 0:01:30]} 29. Bf3 {[%emt 0:04:16]} Nxe5 {[%emt 0:01:22]} 30. fxe5 {[%emt 0:03:19]} Nd7 {[%emt 0:00:04]} 31. Rf2 {[%emt 0:00:29]} Qe7 {[%emt 0:00:24]} 32. Nf1 {[%emt 0:00:47]} Rf7 {[%emt 0:00:18]} 33. Ng3 {[%emt 0:00:05]} Rdf8 {[%emt 0:00:13]} 34. Ref1 {[%emt 0:00:05]} Qe8 {[%emt 0:02:14]} 35. Nh5 {[%emt 0:00:12]} Bc6 {[%emt 0:00:54]} 36. Bg3 {[%emt 0:04:21]} Qa8 {[%emt 0:02:10]} 37. Qd2 {[%emt 0:02:47]} Qd8 {[%emt 0:00:04]} 38. Bh2 {[%emt 0:08:27]} Bb7 {[%emt 0:00:07]} 39. Qe2 {[%emt 0:00:44]} Qa8 {[%emt 0:00:07]} 40. Bg3 {[%emt 0:00:00]} Bc6 {[%emt 0:00:00]} 41. Bh2 {[%emt 0:09:54]} 1/2-1/2

[Event "World Senior chT-50 2019"]
[Site "Rhodes"]
[Date "2019.04.19"]
[Round "4.15"]
[White "Salonen, Jyrki"]
[Black "Llanos, Guillermo"]
[Result "1/2-1/2"]
[ECO "A07"]
[WhiteElo "2162"]
[BlackElo "2293"]
[PlyCount "81"]
[EventDate "2019.04.16"]
[EventType "team-tourn"]
[EventCountry "GRE"]
[TimeControl "40/5400+30:1800+30"]

1. g3 {[%emt 0:00:00]} e5 {[%emt 0:00:08]} 2. Bg2 {[%emt 0:00:00]} d5 {[%emt 0:01:07]} 3. d3 {[%emt 0:00:26]} Nc6 {[%emt 0:01:13]} 4. Nf3 {[%emt 0:00:39]} Nf6 {[%emt 0:00:32]} 5. O-O {[%emt 0:00:19]} Be7 {[%emt 0:00:03]} 6. c3 {[%emt 0:02:52]} a5 {[%emt 0:00:27]} 7. e4 {[%emt 0:05:57]} dxe4 {[%emt 0:04:49]} 8. dxe4 {[%emt 0:00:14]} Qxd1 {[%emt 0:00:05]} 9. Rxd1 {[%emt 0:00:08]} Nxe4 {[%emt 0:01:09]} 10. Nxe5 {[%emt 0:05:41]} Nxe5 {[%emt 0:00:05]} 11. Bxe4 {[%emt 0:00:22]} Bg4 {[%emt 0:17:11]} 12. Re1 {[%emt 0:06:54]} Nf3+ {[%emt 0:00:16]} 13. Bxf3 {[%emt 0:00:08]} Bxf3 {[%emt 0:00:04]} 14. Bf4 {[%emt 0:03:36]} Rc8 {[%emt 0:09:24]} 15. Na3 {[%emt 0:10:38]} Bc6 {[%emt 0:14:01]} 16. Nc4 {[%emt 0:02:23]} b6 {[%emt 0:03:05]} 17. Rad1 {[%emt 0:12:45]} Bd7 {[%emt 0:13:33]} 18. Rxd7 {[%emt 0:07:32]} Kxd7 {[%emt 0:00:15]} 19. Ne5+ {[%emt 0:00:08]} Ke6 {[%emt 0:04:01]} 20. Ng6+ {[%emt 0:00:46]} Kf6 {[%emt 0:00:10]} 21. Nxe7 {[%emt 0:10:46]} Rhe8 {[%emt 0:00:28]} 22. Nd5+ {[%emt 0:03:48]} Kf5 {[%emt 0:00:04]} 23. Kf1 {[%emt 0:06:09]} Rxe1+ {[%emt 0:00:25]} 24. Kxe1 {[%emt 0:00:03]} Ke4 {[%emt 0:02:29]} 25. c4 {[%emt 0:03:56]} b5 {[%emt 0:08:35]} 26. Nc3+ {[%emt 0:01:05]} Kd3 {[%emt 0:00:05]} 27. cxb5 {[%emt 0:01:28]} Kc2 {[%emt 0:00:18]} 28. Nd5 {[%emt 0:01:53]} c6 {[%emt 0:02:33]} 29. b6 {[%emt 0:01:33]} cxd5 {[%emt 0:00:02]} 30. b7 {[%emt 0:00:10]} Re8+ {[%emt 0:00:03]} 31. Kf1 {[%emt 0:00:07]} d4 {[%emt 0:01:06]} 32. b8=Q {[%emt 0:02:49]} Rxb8 {[%emt 0:00:04]} 33. Bxb8 {[%emt 0:00:15]} d3 {[%emt 0:00:02]} 34. Bf4 {[%emt 0:00:37]} d2 {[%emt 0:00:03]} 35. Bxd2 {[%emt 0:00:41]} Kxd2 {[%emt 0:00:08]} 36. b3 {[%emt 0:01:44]} Kc3 {[%emt 0:03:01]} 37. Ke2 {[%emt 0:00:21]} Kb2 {[%emt 0:00:15]} 38. Kd2 {[%emt 0:03:12]} Kxa2 {[%emt 0:00:10]} 39. Kc2 {[%emt 0:00:42]} Ka3 {[%emt 0:00:06]} 40. Kc3 {[%emt 0:00:00]} h5 {[%emt 0:00:00]} 41. Kd4 {[%emt 0:04:38]} 1/2-1/2

[Event "World Senior chT-50 2019"]
[Site "Rhodes"]
[Date "2019.04.19"]
[Round "4.16"]
[White "Perez Wertheim, Rodolfo"]
[Black "Fieandt, John"]
[Result "0-1"]
[ECO "A48"]
[WhiteElo "1914"]
[BlackElo "2151"]
[PlyCount "142"]
[EventDate "2019.04.16"]
[EventType "team-tourn"]
[EventCountry "GRE"]
[TimeControl "40/5400+30:1800+30"]

1. d4 {[%emt 0:00:00]} Nf6 {[%emt 0:00:01]} 2. Nf3 {[%emt 0:00:03]} g6 {[%emt 0:00:15]} 3. Bg5 {[%emt 0:01:11]} Bg7 {[%emt 0:00:36]} 4. Nbd2 {[%emt 0:00:30]} d6 {[%emt 0:01:34]} 5. e4 {[%emt 0:00:24]} Nbd7 {[%emt 0:01:21]} 6. Bc4 {[%emt 0:02:48]} Nb6 {[%emt 0:09:21]} 7. Bb3 {[%emt 0:00:22]} h6 {[%emt 0:02:31]} 8. Bf4 {[%emt 0:13:46]} a5 {[%emt 0:03:00]} 9. a4 {[%emt 0:02:48]} g5 {[%emt 0:17:27]} 10. Bg3 {[%emt 0:12:50]} Nh5 {[%emt 0:01:08]} 11. Ne5 {[%emt 0:01:41]} dxe5 {[%emt 0:03:34]} 12. Qxh5 {[%emt 0:00:29]} e6 {[%emt 0:00:29]} 13. dxe5 {[%emt 0:01:19]} Qe7 {[%emt 0:09:02]} 14. f4 {[%emt 0:16:07]} Bd7 {[%emt 0:03:03]} 15. O-O {[%emt 0:00:33]} O-O-O {[%emt 0:00:15]} 16. Nf3 {[%emt 0:06:50]} gxf4 {[%emt 0:14:18]} 17. Bh4 {[%emt 0:08:06]} Qc5+ {[%emt 0:00:22]} 18. Kh1 {[%emt 0:00:14]} Rdf8 {[%emt 0:00:33]} 19. Qg4 {[%emt 0:00:28]} Rhg8 {[%emt 0:07:07]} 20. Qxf4 {[%emt 0:00:46]} Bc6 {[%emt 0:00:31]} 21. Bf6 {[%emt 0:07:11]} Bxf6 {[%emt 0:02:04]} 22. exf6 {[%emt 0:00:09]} h5 {[%emt 0:01:24]} 23. Ne5 {[%emt 0:02:08]} Nd7 {[%emt 0:01:29]} 24. Nxc6 {[%emt 0:09:21]} Qxc6 {[%emt 0:00:13]} 25. h3 {[%emt 0:05:16]} Rg6 {[%emt 0:01:01]} 26. Qh4 {[%emt 0:00:43]} Qc5 {[%emt 0:01:04]} 27. Rf2 {[%emt 0:02:37]} Qe5 {[%emt 0:00:29]} 28. Raf1 {[%emt 0:00:29]} Kb8 {[%emt 0:01:04]} 29. c3 {[%emt 0:00:19]} Rfg8 {[%emt 0:00:32]} 30. Bd1 {[%emt 0:00:42]} Rg5 {[%emt 0:01:06]} 31. Rd2 {[%emt 0:03:35]} Nc5 {[%emt 0:01:07]} 32. Bc2 {[%emt 0:00:01]} b6 {[%emt 0:01:36]} 33. Qf4 {[%emt 0:00:13]} Kc8 {[%emt 0:03:22]} 34. Qxe5 {[%emt 0:00:13]} Rxe5 {[%emt 0:00:02]} 35. Rf4 {[%emt 0:00:08]} Rg6 {[%emt 0:00:22]} 36. Kh2 {[%emt 0:01:27]} Nd7 {[%emt 0:01:43]} 37. Rdf2 {[%emt 0:00:00]} Reg5 {[%emt 0:01:03]} 38. Bd3 {[%emt 0:00:28]} Ne5 {[%emt 0:05:13]} 39. Be2 {[%emt 0:00:02]} Kb7 {[%emt 0:01:11]} 40. Rh4 {[%emt 0:00:00]} Rh6 {[%emt 0:00:00]} 41. Kg1 {[%emt 0:04:12]} Ng6 {[%emt 0:00:55]} 42. Rhf4 {[%emt 0:02:55]} Nxf4 {[%emt 0:03:14]} 43. Rxf4 {[%emt 0:00:01]} c6 {[%emt 0:02:05]} 44. Kf2 {[%emt 0:07:35]} Kc7 {[%emt 0:00:36]} 45. b4 {[%emt 0:07:32]} Kd6 {[%emt 0:00:58]} 46. h4 {[%emt 0:00:26]} Rgg6 {[%emt 0:02:26]} 47. Kf3 {[%emt 0:05:01]} Ke5 {[%emt 0:03:43]} 48. bxa5 {[%emt 0:00:52]} bxa5 {[%emt 0:02:09]} 49. g3 {[%emt 0:04:17]} Rxf6 {[%emt 0:00:44]} 50. Ke3 {[%emt 0:00:52]} c5 {[%emt 0:05:32]} 51. Bf3 {[%emt 0:02:33]} Rhg6 {[%emt 0:03:22]} 52. Rxf6 {[%emt 0:00:25]} Kxf6 {[%emt 0:00:10]} 53. Kf2 {[%emt 0:00:24]} Rh6 {[%emt 0:00:17]} 54. Ke3 {[%emt 0:00:15]} Ke5 {[%emt 0:00:04]} 55. Be2 {[%emt 0:00:18]} f5 {[%emt 0:00:55]} 56. exf5 {[%emt 0:01:26]} Kxf5 {[%emt 0:00:11]} 57. Kd3 {[%emt 0:00:17]} Ke5 {[%emt 0:00:04]} 58. Kc4 {[%emt 0:00:20]} Kd6 {[%emt 0:00:59]} 59. Kb5 {[%emt 0:00:00]} Rg6 {[%emt 0:00:18]} 60. Bxh5 {[%emt 0:01:34]} Rxg3 {[%emt 0:00:09]} 61. Kxa5 {[%emt 0:01:26]} Rh3 {[%emt 0:02:05]} 62. Be8 {[%emt 0:00:25]} Rxh4 {[%emt 0:00:30]} 63. Kb6 {[%emt 0:00:02]} Rc4 {[%emt 0:10:57]} 64. a5 {[%emt 0:00:10]} Rxc3 {[%emt 0:00:06]} 65. a6 {[%emt 0:00:04]} Ra3 {[%emt 0:00:05]} 66. Bb5 {[%emt 0:00:45]} Kd5 {[%emt 0:00:19]} 67. a7 {[%emt 0:01:48]} Rxa7 {[%emt 0:00:12]} 68. Kxa7 {[%emt 0:00:01]} c4 {[%emt 0:00:08]} 69. Kb6 {[%emt 0:00:11]} e5 {[%emt 0:00:04]} 70. Bc6+ {[%emt 0:00:31]} Kd4 {[%emt 0:00:07]} 71. Kb5 {[%emt 0:00:06]} c3 {[%emt 0:00:02]} 0-1

[Event "World Senior chT-50 2019"]
[Site "Rhodes"]
[Date "2019.04.19"]
[Round "4.19"]
[White "Brendel, Oliver"]
[Black "Fraser-Mitchell, Jeremy N"]
[Result "1-0"]
[ECO "A26"]
[WhiteElo "2339"]
[BlackElo "2073"]
[PlyCount "81"]
[EventDate "2019.04.16"]
[EventType "team-tourn"]
[EventCountry "GRE"]
[TimeControl "40/5400+30:1800+30"]

1. c4 {[%emt 0:00:00]} e5 {[%emt 0:00:00]} 2. g3 {[%emt 0:00:00]} Nc6 {[%emt 0:00:00]} 3. Nc3 {[%emt 0:00:00]} g6 {[%emt 0:00:00]} 4. Bg2 {[%emt 0:00:08]} Bg7 {[%emt 0:00:00]} 5. e4 {[%emt 0:00:09]} Nge7 {[%emt 0:00:01]} 6. Nge2 {[%emt 0:00:27]} O-O {[%emt 0:00:08]} 7. d3 {[%emt 0:00:46]} d6 {[%emt 0:00:06]} 8. O-O {[%emt 0:00:13]} f5 {[%emt 0:00:31]} 9. Nd5 {[%emt 0:00:08]} h6 {[%emt 0:05:53] A26: English Opening vs King's Indian with ...Nc6 and d3} (9... Kh8 10. Be3 Be6 11. Qd2 Qd7 12. Rae1 Ng8 13. b4 Nd8 14. exf5 Bxf5 15. d4 Nf7 16. b5 Bh3 17. f3 Bxg2 18. Kxg2 {½-½ (28) Gorovets,A (2505)-Smirin,I (2663) Arlington 2015}) 10. f4 {[%emt 0:02:10]} Kh7 {[%emt 0:05:04]} 11. Kh1 $146 {[%emt 0:09:16]} ({Predecessor:} 11. Rb1 Be6 12. b4 Rb8 13. b5 Nd4 14. Nxd4 exd4 15. Re1 fxe4 16. Nxe7 Qxe7 17. Bxe4 Qd7 18. Qf3 Bg4 19. Qg2 Bh3 20. Qf3 Bg4 21. Qg2 Bh3 22. Qf3 Bg4 {½-½ (22) Lehtisalo,M (2107)-Sipila,M (2002) Finland 2015}) 11... Be6 {[%emt 0:02:40]} 12. Be3 {[%emt 0:01:42]} Qd7 {[%emt 0:02:49]} 13. Qd2 {[%emt 0:07:29]} Rf7 {[%emt 0:11:57]} 14. d4 {[%emt 0:06:49]} exd4 {[%emt 0:04:52]} 15. Nxd4 {[%emt 0:00:20]} Nxd4 {[%emt 0:00:40]} 16. Bxd4 {[%emt 0:00:44]} Raf8 {[%emt 0:03:44]} 17. Bxg7 {[%emt 0:08:34]} Rxg7 {[%emt 0:10:25]} 18. Qd4 {[%emt 0:00:13]} Rgf7 {[%emt 0:02:35]} 19. Qxa7 {[%emt 0:01:31]} fxe4 {[%emt 0:06:54]} 20. Bxe4 {[%emt 0:14:32]} Nf5 $16 {[%emt 0:00:40]} 21. Rfe1 {[%emt 0:10:41]} c6 {[%emt 0:03:55]} 22. Qf2 {[%emt 0:06:13]} b5 {[%emt 0:04:27]} 23. b3 {[%emt 0:06:20]} Ng7 {[%emt 0:03:08]} 24. Nb4 {[%emt 0:01:38]} bxc4 {[%emt 0:04:46]} 25. bxc4 {[%emt 0:02:08]} Rc8 {[%emt 0:04:40]} 26. Qb6 {[%emt 0:06:17]} Bxc4 {[%emt 0:04:26]} 27. Nxc6 {[%emt 0:02:48]} Nf5 {[%emt 0:02:29]} 28. Bg2 {[%emt 0:01:44]} h5 {[%emt 0:02:29]} 29. Nd4 {[%emt 0:01:57]} Ne7 {[%emt 0:03:49]} 30. Nf3 {[%emt 0:00:18]} Kh6 {[%emt 0:05:16]} 31. Ng5 {[%emt 0:00:08]} Rff8 {[%emt 0:00:37]} 32. a4 {[%emt 0:01:22]} Bd5 {[%emt 0:02:23]} 33. Bxd5 {[%emt 0:00:56]} Nxd5 {[%emt 0:00:06]} 34. Qb5 {[%emt 0:01:24]} Qf5 {[%emt 0:01:31]} 35. Rad1 {[%emt 0:01:12]} Rc5 {[%emt 0:00:56]} 36. Qb7 {[%emt 0:01:39]} Nxf4 {[%emt 0:00:51]} 37. gxf4 {[%emt 0:01:00]} Qxf4 {[%emt 0:01:05]} 38. Ne6 {[%emt 0:00:28]} Qf6 {[%emt 0:00:23]} 39. Nxc5 {[%emt 0:01:44]} dxc5 {[%emt 0:00:09]} 40. Rd7 {[%emt 0:00:00]} Qf2 {[%emt 0:00:00]} 41. Rh7+ {[%emt 0:03:03]} 1-0